bitfinex/quotes_BTCUSD_20240620
["timestamp","ask_amount","ask_price","bid_price","bid_amount"]
[1718873619109,0.1,65788.0,65787.0,0.04029071]
[1718873619318,0.21349328,65788.0,65787.0,0.05310859]
[1718873619514,0.21349328,65788.0,65787.0,0.01481788]
[1718873619946,0.21349328,65788.0,65787.0,0.01281788]
[1718873620154,0.21349328,65788.0,65787.0,0.01681788]
[1718873621259,0.19551257,65788.0,65787.0,0.01681788]
[1718873621570,0.10471464,65788.0,65787.0,0.01681788]
[1718873622816,0.00471469,65788.0,65787.0,0.01681788]
[1718873623833,0.0955131,65788.0,65787.0,0.01681788]
[1718873623985,0.1955131,65788.0,65787.0,0.01681788]
[1718873624993,0.09550289,65788.0,65787.0,0.01681788]
[1718873625605,0.00471419,65788.0,65787.0,0.01681788]
[1718873627736,0.00471419,65788.0,65787.0,0.05659038]
[1718873628365,0.15671719,65788.0,65787.0,0.05659038]
[1718873628560,0.25671719,65788.0,65787.0,0.05659038]
[1718873630588,0.25671719,65788.0,65787.0,0.5036515]
[1718873630589,0.00471419,65788.0,65787.0,0.5036515]
[1718873630795,0.00471419,65788.0,65787.0,0.463879]
[1718873631001,0.00471419,65789.0,65788.0,0.02]
[1718873631204,0.21745084,65790.0,65788.0,0.17256112]
[1718873631373,0.21745084,65790.0,65789.0,0.40836992]
[1718873631586,0.2221613,65790.0,65789.0,0.40836992]
[1718873631800,0.2221613,65790.0,65789.0,0.41826156]
[1718873633496,0.0701623,65790.0,65789.0,0.43826156]
[1718873634178,0.0701623,65790.0,65789.0,0.44826156]
[1718873634562,0.0701623,65790.0,65789.0,0.44926156]
[1718873634989,0.0701623,65790.0,65789.0,0.45926156]
[1718873635205,0.0701623,65790.0,65789.0,0.44826156]
[1718873635400,0.0701623,65790.0,65789.0,0.43826156]
[1718873635809,0.2221603,65790.0,65789.0,0.44826156]
[1718873636396,0.0701623,65790.0,65789.0,1.01296456]
[1718873636595,0.0701623,65790.0,65789.0,1.31696656]
[1718873636789,0.0701623,65790.0,65789.0,1.02396456]
[1718873637223,0.0701623,65790.0,65789.0,1.01396456]
[1718873637428,0.0701623,65790.0,65789.0,1.02696456]
[1718873637630,0.0701623,65790.0,65789.0,1.33096656]
[1718873637831,0.0701623,65790.0,65789.0,1.02696456]
[1718873638014,0.0701623,65790.0,65789.0,1.03996456]
[1718873638686,0.0701623,65790.0,65789.0,1.34396656]
[1718873639448,0.0701623,65790.0,65789.0,1.03996456]
[1718873639656,0.0701623,65790.0,65789.0,1.34396656]
[1718873639855,0.0701623,65790.0,65789.0,1.03996456]
[1718873642670,0.06545184,65790.0,65789.0,1.03996456]
[1718873642783,0.07016585,65790.0,65789.0,1.03996456]
[1718873643195,0.07016585,65790.0,65789.0,1.04091056]
[1718873644652,0.07016585,65790.0,65789.0,0.67820856]
[1718873644857,0.07016585,65790.0,65789.0,1.04091056]
[1718873648538,0.07016585,65790.0,65789.0,1.44691256]
[1718873650256,0.07016585,65790.0,65789.0,1.75091456]
[1718873651207,0.07016585,65790.0,65789.0,1.73791456]
[1718873651425,0.07016585,65790.0,65789.0,1.71391456]
[1718873651677,0.07016585,65790.0,65789.0,1.72791456]
[1718873651871,0.07016585,65790.0,65789.0,1.74191456]
[1718873653214,0.07016585,65790.0,65789.0,1.90221456]
[1718873653416,0.06545184,65790.0,65789.0,1.90221456]
[1718873657059,0.06545184,65790.0,65789.0,1.84351456]
[1718873657232,0.07016748,65790.0,65789.0,1.90221456]
[1718873659530,0.00863,65798.0,65797.0,0.16]
[1718873659745,0.00863,65798.0,65797.0,1.42107312]
[1718873659946,0.00863,65798.0,65797.0,1.43263056]
[1718873660147,0.00863,65798.0,65797.0,1.89689556]
[1718873661059,0.00863,65798.0,65797.0,1.91089556]
[1718873661215,0.00863,65798.0,65797.0,2.0634497]
[1718873662123,0.00863,65798.0,65797.0,2.0774497]
[1718873663245,0.00863,65798.0,65797.0,2.0634497]
[1718873663845,0.00863,65798.0,65797.0,2.0774497]
[1718873669056,0.00863,65798.0,65797.0,2.0187497]
[1718873669258,0.00863,65798.0,65797.0,2.0774497]
[1718873669647,0.01334732,65798.0,65797.0,2.0774497]
[1718873670299,0.01334732,65798.0,65797.0,2.0634497]
[1718873670499,0.01334732,65798.0,65797.0,1.9907497]
[1718873670717,0.01334732,65798.0,65797.0,2.0634497]
[1718873670928,0.01334732,65798.0,65797.0,2.0774497]
[1718873672507,0.01334732,65798.0,65797.0,2.09744064]
[1718873672714,0.01334732,65798.0,65797.0,2.11078764]
[1718873675947,0.01326927,65798.0,65797.0,2.11078764]
[1718873677768,0.01326993,65798.0,65797.0,2.11078764]
[1718873679126,0.01327014,65798.0,65797.0,2.11078764]
[1718873685122,0.01327014,65798.0,65797.0,2.05208764]
[1718873685400,0.01327014,65798.0,65797.0,2.11078764]
[1718873692686,0.01327014,65798.0,65797.0,2.09678764]
[1718873693103,0.01327014,65798.0,65797.0,2.11078764]
[1718873693306,0.01327014,65798.0,65797.0,2.09678764]
[1718873693733,0.01327014,65798.0,65797.0,2.08278764]
[1718873694229,0.01327014,65798.0,65797.0,2.09678764]
[1718873694747,0.01327014,65798.0,65797.0,2.08278764]
[1718873694949,0.01327014,65798.0,65797.0,2.11078764]
[1718873695734,0.01327014,65798.0,65797.0,2.05208764]
[1718873695942,0.01327054,65798.0,65797.0,2.11078764]
[1718873699248,0.01327054,65798.0,65797.0,2.05208764]
[1718873699449,0.01327054,65798.0,65797.0,2.11078764]
[1718873700478,0.01327054,65798.0,65797.0,2.00878764]
[1718873701458,0.01327054,65798.0,65797.0,2.11078764]
[1718873701923,0.0132707,65798.0,65797.0,2.11078764]
[1718873703659,0.01327068,65798.0,65797.0,2.11078764]
[1718873704845,0.01327068,65798.0,65797.0,2.06078764]
[1718873706673,0.01327068,65798.0,65797.0,2.11078764]
[1718873706902,0.09092582,65817.0,65806.0,0.3823]
[1718873707104,0.00863,65820.0,65806.0,1.64095547]
[1718873707302,0.00863,65820.0,65806.0,1.95650029]
[1718873707456,0.00863,65820.0,65806.0,2.44277758]
[1718873707655,0.00863,65820.0,65806.0,2.47325758]
[1718873708183,0.00863,65820.0,65806.0,2.48725758]
[1718873708380,0.00863,65820.0,65806.0,1.95536229]
[1718873708589,0.00863,65820.0,65806.0,1.94136229]
[1718873708990,0.00863,65820.0,65806.0,1.95536229]
[1718873709209,0.00863,65820.0,65806.0,2.00095627]
[1718873709850,0.161352,65823.0,65806.0,2.00095627]
[1718873709851,0.08089058,65833.0,65821.0,0.02]
[1718873709995,0.01995006,65833.0,65828.0,0.0587]
[1718873710191,0.07321451,65858.0,65829.0,0.16418504]
[1718873710486,0.02,65840.0,65829.0,0.16418504]
[1718873710662,0.02,65839.0,65829.0,0.16418504]
[1718873710892,0.13638873,65841.0,65829.0,0.16418504]
[1718873711093,0.28961728,65835.0,65832.0,0.0587]
[1718873711210,0.28961728,65835.0,65833.0,0.17484962]
[1718873711415,0.28961728,65835.0,65834.0,0.01160951]
[1718873711614,0.28961728,65835.0,65834.0,0.16417063]
[1718873712031,0.21365728,65835.0,65834.0,0.16417063]
[1718873712237,0.21365728,65835.0,65834.0,0.18868654]
[1718873712794,0.30215728,65835.0,65834.0,0.18868654]
[1718873712990,0.30215728,65835.0,65834.0,0.19268654]
[1718873713195,0.37811728,65835.0,65834.0,0.19268654]
[1718873713806,0.37811728,65835.0,65834.0,0.18868654]
[1718873714007,0.39776739,65835.0,65834.0,0.18868654]
[1718873714214,0.39776739,65835.0,65834.0,0.16417063]
[1718873714441,0.28411011,65835.0,65834.0,0.16417063]
[1718873714596,0.28411011,65835.0,65834.0,0.16817063]
[1718873714996,0.28411011,65835.0,65834.0,0.15256112]
[1718873715208,0.28411011,65835.0,65834.0,0.16817063]
[1718873715412,0.28411011,65835.0,65834.0,0.18598769]
[1718873715670,0.28411011,65835.0,65834.0,0.18198769]
[1718873715845,0.28411011,65835.0,65834.0,0.18098769]
[1718873716047,0.28411011,65835.0,65834.0,0.18998769]
[1718873716246,0.28411011,65835.0,65834.0,0.19898769]
[1718873717329,0.20815011,65835.0,65834.0,0.19898769]
[1718873717692,0.20815011,65835.0,65834.0,0.18998769]
[1718873717892,0.1885,65835.0,65834.0,0.19098769]
[1718873718122,0.0885,65835.0,65834.0,0.19098769]
[1718873719116,0.0885,65835.0,65834.0,0.18998769]
[1718873719348,0.0885,65835.0,65834.0,0.20298769]
[1718873719907,0.0885,65835.0,65834.0,0.19398769]
[1718873720110,0.0885,65835.0,65834.0,0.20298769]
[1718873720256,0.0885,65835.0,65834.0,0.19398769]
[1718873720660,0.0885,65835.0,65834.0,0.20698769]
[1718873723755,0.093,65835.0,65834.0,0.26568769]
[1718873724193,0.0875,65837.0,65834.0,0.26568769]
[1718873724401,0.0875,65837.0,65836.0,0.0587]
[1718873724643,0.6,65844.0,65836.0,0.0587]
[1718873724644,0.0875,65840.0,65836.0,0.22284645]
[1718873724991,0.0875,65840.0,65837.0,0.15256112]
[1718873725160,0.0875,65840.0,65839.0,0.0587]
[1718873725379,0.0875,65840.0,65839.0,0.21126112]
[1718873725581,0.0875,65840.0,65839.0,0.22284007]
[1718873726342,0.42581867,65845.0,65839.0,0.22284007]
[1718873726552,0.09069397,65848.0,65840.0,0.17981435]
[1718873726918,0.537,65847.0,65841.0,0.01157673]
[1718873727120,0.5,65847.0,65842.0,0.15256112]
[1718873727324,1.157,65847.0,65842.0,0.15256112]
[1718873727529,0.657,65847.0,65843.0,0.03658372]
[1718873727730,0.642,65847.0,65844.0,0.15256112]
[1718873727936,0.539,65846.0,65844.0,0.15256112]
[1718873728140,0.714,65847.0,65845.0,0.01157248]
[1718873728333,0.714,65847.0,65845.0,0.03048675]
[1718873728513,0.1,65846.0,65845.0,0.03048675]
[1718873728690,1.167,65847.0,65845.0,0.01157248]
[1718873728888,1.214,65846.0,65845.0,0.01157248]
[1718873729087,0.1,65846.0,65844.0,0.15256112]
[1718873729296,1.214,65846.0,65844.0,0.15256112]
[1718873729498,0.0654,65845.0,65844.0,0.15256112]
[1718873734177,0.5654,65845.0,65844.0,0.15256112]
[1718873734393,0.6654,65845.0,65844.0,0.15256112]
[1718873734724,0.1654,65845.0,65844.0,0.15256112]
[1718873734835,0.1,65845.0,65844.0,0.16781723]
[1718873735051,0.1,65845.0,65844.0,0.17938063]
[1718873735464,0.1,65845.0,65844.0,0.02681951]
[1718873735775,0.1,65845.0,65834.0,0.03681706]
[1718873735977,0.0587,65845.0,65835.0,0.1641341]
[1718873736164,0.09058108,65848.0,65835.0,0.1641341]
[1718873736377,0.023,65847.0,65838.0,0.02]
[1718873736694,0.023,65847.0,65839.0,0.16412984]
[1718873736695,0.0817,65847.0,65839.0,0.16412984]
[1718873736894,0.1817,65847.0,65839.0,0.16412984]
[1718873737099,0.5,65846.0,65839.0,0.16412984]
[1718873737302,0.1,65845.0,65839.0,0.18412984]
[1718873737508,0.1,65845.0,65840.0,0.0251745]
[1718873737708,0.1,65845.0,65841.0,0.15256112]
[1718873738052,0.1,65845.0,65841.0,0.16412771]
[1718873738387,0.1,65846.0,65841.0,0.16412771]
[1718873740090,0.0587,65844.0,65841.0,0.16412771]
[1718873741230,0.0587,65844.0,65841.0,0.18930199]
[1718873741579,0.0587,65844.0,65841.0,0.19130199]
[1718873742407,0.0587,65844.0,65841.0,0.19230199]
[1718873742611,0.1587,65844.0,65841.0,0.19230199]
[1718873743311,0.1,65844.0,65841.0,0.19230199]
[1718873743505,0.1,65844.0,65842.0,0.0212302]
[1718873743706,0.09058108,65845.0,65842.0,0.17379132]
[1718873743927,0.09058108,65845.0,65843.0,0.01156446]
[1718873745283,0.21408636,65846.0,65843.0,0.01156446]
[1718873745284,0.09058108,65844.0,65843.0,0.01156446]
[1718873746354,0.09058108,65844.0,65843.0,0.03156446]
[1718873746583,0.09070016,65844.0,65843.0,0.03156446]
[1718873746978,0.09070017,65844.0,65843.0,0.03156446]
[1718873747111,0.21423521,65846.0,65845.0,0.02]
[1718873747112,0.10086,65846.0,65845.0,0.02]
[1718873747322,0.10086,65846.0,65845.0,0.26426112]
[1718873747527,0.00086,65846.0,65845.0,0.27582478]
[1718873749249,0.00086,65846.0,65845.0,0.28282478]
[1718873749621,0.00086,65846.0,65845.0,0.27582478]
[1718873750227,0.00086,65846.0,65845.0,0.28382478]
[1718873750631,0.00086,65846.0,65845.0,0.27582478]
[1718873750833,0.00086,65846.0,65845.0,0.34338546]
[1718873751045,0.00086,65846.0,65845.0,0.35038546]
[1718873751244,0.03563643,65851.0,65848.0,0.02]
[1718873751482,0.11337521,65853.0,65849.0,0.2300643]
[1718873751681,0.12200521,65854.0,65851.0,0.02]
[1718873751877,0.12200521,65854.0,65852.0,0.15256112]
[1718873751878,0.0759,65853.0,65852.0,0.15256112]
[1718873752130,0.0759,65853.0,65852.0,0.16410255]
[1718873752898,0.14142992,65854.0,65852.0,0.18710866]
[1718873753306,0.0587,65853.0,65852.0,0.18710866]
[1718873753904,0.12805471,65854.0,65852.0,0.18710866]
[1718873754285,0.0587,65853.0,65852.0,0.18710866]
[1718873754403,0.0587,65853.0,65852.0,0.19410866]
[1718873754830,0.12805471,65854.0,65852.0,0.19010866]
[1718873755033,0.18675471,65854.0,65852.0,0.19010866]
[1718873755301,0.18675471,65854.0,65852.0,0.18910866]
[1718873755460,0.1,65853.0,65852.0,0.18910866]
[1718873755657,0.08675471,65854.0,65852.0,0.18910866]
[1718873756082,0.08675471,65854.0,65852.0,0.16610255]
[1718873756289,0.02805471,65854.0,65853.0,0.02]
[1718873756608,0.02805471,65854.0,65853.0,0.15256112]
[1718873756849,0.02805471,65854.0,65853.0,0.16407344]
[1718873757848,0.02805471,65854.0,65853.0,0.16807344]
[1718873758611,0.02805471,65854.0,65853.0,0.17207344]
[1718873759173,0.14142992,65854.0,65853.0,0.17207344]
[1718873759356,0.24142992,65854.0,65853.0,0.17207344]
[1718873760134,0.24142992,65854.0,65853.0,0.16807344]
[1718873760336,0.31732992,65854.0,65853.0,0.16807344]
[1718873760547,0.20395471,65854.0,65853.0,0.01151232]
[1718873760744,0.25695471,65854.0,65853.0,0.01151232]
[1718873760942,0.89300497,65854.0,65853.0,0.002]
[1718873761111,0.89300497,65854.0,65853.0,0.005]
[1718873761112,0.25695471,65854.0,65853.0,0.005]
[1718873761512,0.03,65853.0,65839.0,0.4752]
[1718873761765,0.0587,65844.0,65840.0,0.20884263]
[1718873761988,0.0587,65844.0,65840.0,0.22037756]
[1718873762512,0.14952077,65844.0,65840.0,0.22037756]
[1718873762866,0.0587,65844.0,65840.0,0.22037756]
[1718873763266,0.22548077,65844.0,65840.0,0.22037756]
[1718873763667,0.22548077,65844.0,65840.0,0.16409605]
[1718873764168,0.0587,65841.0,65840.0,0.17009605]
[1718873764647,0.0887,65841.0,65840.0,0.17009605]
[1718873764827,0.17952077,65841.0,65840.0,0.17009605]
[1718873765439,0.17952077,65841.0,65840.0,0.17509605]
[1718873766397,0.11352596,65842.0,65840.0,0.24012566]
[1718873766603,0.09082994,65841.0,65840.0,0.17509605]
[1718873766805,0.09082994,65841.0,65840.0,0.16909605]
[1718873766986,0.09082994,65841.0,65840.0,0.16409605]
[1718873767207,0.09082994,65841.0,65840.0,0.17109605]
[1718873767376,0.09082994,65841.0,65840.0,0.17009605]
[1718873767804,0.09082994,65841.0,65840.0,0.17609605]
[1718873768000,0.09082994,65841.0,65840.0,0.17009605]
[1718873768401,0.09082994,65841.0,65840.0,0.17709605]
[1718873769827,0.1,65842.0,65841.0,7.909e-05]
[1718873770025,0.19083142,65842.0,65841.0,7.909e-05]
[1718873770253,0.19083142,65842.0,65841.0,0.01162921]
[1718873770457,0.1587,65842.0,65841.0,0.01162921]
[1718873770609,0.1164,65842.0,65841.0,0.01162921]
[1718873770813,0.1751,65842.0,65841.0,7.909e-05]
[1718873771031,0.1164,65842.0,65841.0,0.00507909]
[1718873771233,0.17502091,65842.0,65841.0,0.005]
[1718873771438,0.17502091,65842.0,65841.0,0.011]
[1718873772410,0.07502091,65842.0,65841.0,0.011]
[1718873772581,0.17502091,65842.0,65841.0,0.011]
[1718873772789,0.18446017,65842.0,65841.0,0.011]
[1718873773746,0.08446017,65842.0,65841.0,0.011]
[1718873773947,0.02576017,65842.0,65841.0,0.011]
[1718873774213,0.08446017,65842.0,65841.0,0.011]
[1718873774393,0.00943926,65842.0,65841.0,0.02142563]
[1718873774611,0.00943926,65842.0,65841.0,0.04520819]
[1718873775312,0.00943926,65842.0,65841.0,0.02142563]
[1718873779206,0.12301693,65842.0,65841.0,0.02142563]
[1718873779379,0.10943926,65842.0,65841.0,0.02142563]
[1718873780188,0.16813926,65842.0,65841.0,0.02142563]
[1718873780413,0.28172422,65842.0,65841.0,0.02142563]
[1718873780592,0.28171971,65842.0,65841.0,0.02142563]
[1718873780790,0.16813926,65842.0,65841.0,0.02142563]
[1718873780989,0.10943926,65842.0,65841.0,0.02142563]
[1718873781214,0.16813926,65842.0,65841.0,0.02142563]
[1718873781423,0.28171929,65842.0,65841.0,0.02142563]
[1718873781616,0.16813926,65842.0,65841.0,0.02142563]
[1718873781816,0.00943926,65842.0,65841.0,0.04530279]
[1718873782044,0.12303304,65842.0,65841.0,0.04530279]
[1718873782256,0.22303304,65842.0,65841.0,0.41426391]
[1718873782834,0.22303242,65842.0,65841.0,0.41426391]
[1718873784111,0.22303501,65842.0,65841.0,0.41426391]
[1718873784309,0.20031939,65842.0,65841.0,0.41426391]
[1718873784520,0.10944711,65842.0,65841.0,0.41426391]
[1718873784687,0.10944711,65842.0,65841.0,0.40383828]
[1718873784891,0.10944711,65842.0,65841.0,0.42383828]
[1718873785094,0.10944711,65842.0,65841.0,0.43451041]
[1718873785237,0.10944833,65842.0,65841.0,0.43451041]
[1718873785851,0.10906953,65842.0,65841.0,0.41063325]
[1718873786687,0.10906953,65842.0,65841.0,0.40563325]
[1718873786869,0.00906953,65842.0,65841.0,0.40563325]
[1718873787065,0.10906953,65842.0,65841.0,0.41063325]
[1718873787421,0.10906953,65842.0,65841.0,0.45166118]
[1718873787586,0.10906953,65842.0,65841.0,0.44666118]
[1718873787991,0.10906953,65842.0,65841.0,0.46466118]
[1718873788190,0.00906953,65842.0,65841.0,0.46466118]
[1718873789239,0.00906953,65842.0,65841.0,0.45566118]
[1718873790642,0.00906953,65842.0,65841.0,0.44666118]
[1718873790854,0.00906953,65842.0,65841.0,0.45566118]
[1718873792430,0.00906953,65842.0,65841.0,0.46466118]
[1718873792634,0.1,65843.0,65842.0,0.02]
[1718873792948,0.09532234,65844.0,65843.0,0.02]
[1718873793178,0.09532234,65844.0,65843.0,0.17256112]
[1718873793325,0.09532234,65844.0,65843.0,0.18322718]
[1718873794138,0.09532234,65844.0,65843.0,0.39612718]
[1718873794737,0.09532234,65844.0,65843.0,0.40312718]
[1718873794943,0.09532234,65844.0,65843.0,0.38312718]
[1718873795175,0.09532234,65844.0,65843.0,0.38912718]
[1718873795907,0.1047697,65844.0,65843.0,0.38912718]
[1718873796122,0.2047697,65844.0,65843.0,0.17622718]
[1718873796328,0.2047697,65844.0,65843.0,0.02366606]
[1718873796329,0.29568053,65844.0,65843.0,0.02366606]
[1718873796548,0.2047697,65844.0,65843.0,0.02366606]
[1718873796761,0.2047697,65844.0,65843.0,0.013]
[1718873797364,0.19532234,65844.0,65843.0,0.013]
[1718873797567,0.09532234,65844.0,65843.0,0.013]
[1718873799198,0.15402234,65844.0,65843.0,0.013]
[1718873799365,0.25402234,65844.0,65843.0,0.013]
[1718873800018,0.19532234,65844.0,65843.0,0.013]
[1718873800415,0.25402234,65844.0,65843.0,0.013]
[1718873802188,0.19532234,65844.0,65843.0,0.013]
[1718873802469,0.25402234,65844.0,65843.0,0.013]
[1718873802643,0.39956523,65844.0,65843.0,0.013]
[1718873803007,3.96632725,65844.0,65843.0,0.013]
[1718873803333,3.81291523,65844.0,65843.0,0.013]
[1718873803737,3.96632725,65844.0,65843.0,0.013]
[1718873803997,3.96632725,65844.0,65843.0,0.007]
[1718873804332,3.96637322,65844.0,65843.0,0.009]
[1718873805517,3.96637322,65844.0,65840.0,0.000946]
[1718873805695,0.0587,65841.0,65840.0,0.000946]
[1718873806101,0.0817,65841.0,65840.0,0.000946]
[1718873806547,0.30424289,65841.0,65840.0,0.000946]
[1718873806896,3.71959289,65841.0,65840.0,0.001946]
[1718873807259,0.30624289,65841.0,65840.0,0.001946]
[1718873807502,3.63366449,65841.0,65840.0,0.001946]
[1718873807752,0.30511802,65841.0,65840.0,0.001946]
[1718873807968,3.71846802,65841.0,65833.0,0.000946]
[1718873808129,0.09543274,65840.0,65833.0,0.000946]
[1718873808345,0.0587,65834.0,65833.0,0.000946]
[1718873808568,0.0817,65834.0,65833.0,0.000946]
[1718873809556,0.0827,65834.0,65833.0,0.000946]
[1718873809759,0.21900955,65834.0,65833.0,0.000946]
[1718873809963,0.1827,65834.0,65833.0,0.000946]
[1718873810545,0.25866,65834.0,65833.0,0.000946]
[1718873811919,0.25866,65834.0,65833.0,0.01089725]
[1718873812125,0.25866,65834.0,65833.0,0.000946]
[1718873812320,0.25866,65834.0,65833.0,0.01089725]
[1718873812541,0.25866,65834.0,65833.0,0.000946]
[1718873812735,0.25866,65834.0,65833.0,0.01089725]
[1718873812942,0.25866,65834.0,65833.0,0.000946]
[1718873813142,0.25866,65834.0,65833.0,0.01089725]
[1718873813348,0.25866,65834.0,65833.0,0.000946]
[1718873813547,0.25866,65834.0,65833.0,0.01089725]
[1718873813743,0.25866,65834.0,65833.0,0.000946]
[1718873813963,0.25866,65834.0,65833.0,0.01089725]
[1718873814164,0.25866,65834.0,65833.0,0.000946]
[1718873814863,0.25866,65834.0,65833.0,0.01089725]
[1718873815129,0.25866,65834.0,65833.0,0.01089663]
[1718873820362,0.33790322,65834.0,65833.0,0.22778629]
[1718873820564,0.28312552,65834.0,65833.0,0.22778629]
[1718873820954,0.28312552,65834.0,65833.0,0.21783566]
[1718873821235,0.28312552,65834.0,65833.0,0.196846]
[1718873821421,0.39660322,65834.0,65833.0,0.01089634]
[1718873821781,0.28312552,65834.0,65833.0,0.000946]
[1718873821985,0.28312552,65834.0,65833.0,0.01089634]
[1718873822390,0.39659072,65834.0,65833.0,0.01089634]
[1718873822608,0.28312552,65834.0,65833.0,0.000946]
[1718873824633,0.28312552,65834.0,65833.0,0.01089948]
[1718873824814,0.28312552,65834.0,65833.0,0.000946]
[1718873825012,0.28312552,65834.0,65833.0,0.01089948]
[1718873825218,0.28312552,65834.0,65833.0,0.000946]
[1718873825419,0.28312552,65834.0,65833.0,0.0108989]
[1718873825625,0.28312552,65834.0,65833.0,0.000946]
[1718873826330,0.28312552,65834.0,65833.0,0.0108989]
[1718873826529,0.28312552,65834.0,65833.0,0.000946]
[1718873827405,0.32313081,65834.0,65833.0,0.000946]
[1718873827605,3.73648081,65834.0,65833.0,0.000946]
[1718873828846,0.1,65833.0,65821.0,0.1098]
[1718873829043,0.1,65833.0,65812.0,0.7811]
[1718873829044,0.0587,65822.0,65813.0,0.1903]
[1718873829335,0.0587,65815.0,65814.0,0.15256112]
[1718873829559,0.055865,65815.0,65814.0,0.16253427]
[1718873829839,0.055865,65815.0,65814.0,0.27233427]
[1718873831011,0.055865,65815.0,65814.0,0.28633427]
[1718873831218,0.131825,65815.0,65814.0,0.28633427]
[1718873831401,0.131825,65815.0,65814.0,0.37133427]
[1718873832815,0.131825,65815.0,65814.0,0.38533427]
[1718873836291,0.128015,65815.0,65814.0,0.38533427]
[1718873836447,0.128015,65815.0,65814.0,0.4258677]
[1718873836823,0.0587,65817.0,65814.0,0.4258677]
[1718873837718,0.0587,65817.0,65814.0,0.4118677]
[1718873837895,0.0587,65817.0,65814.0,0.3978677]
[1718873838074,0.0587,65817.0,65814.0,0.4118677]
[1718873838285,0.0587,65817.0,65815.0,0.04318677]
[1718873838481,0.0587,65817.0,65814.0,0.37133427]
[1718873838482,0.13466,65817.0,65816.0,0.15256112]
[1718873838710,0.13466,65817.0,65816.0,0.16254224]
[1718873839931,0.13466,65817.0,65816.0,0.17654224]
[1718873840723,0.13466,65817.0,65816.0,0.18954224]
[1718873841540,0.23466,65817.0,65816.0,0.18954224]
[1718873843637,0.23466,65817.0,65816.0,0.03698112]
[1718873843847,0.25766,65817.0,65816.0,0.03698112]
[1718873844044,0.25766,65817.0,65816.0,0.02398112]
[1718873844247,0.25766,65817.0,65808.0,0.1084]
[1718873844248,0.39378772,65817.0,65808.0,0.1084]
[1718873844452,0.0587,65809.0,65808.0,0.1084]
[1718873845003,0.14947297,65809.0,65808.0,0.1084]
[1718873845232,0.1587,65809.0,65808.0,0.1084]
[1718873845441,0.24947297,65809.0,65808.0,0.1084]
[1718873845637,0.1587,65809.0,65808.0,0.1084]
[1718873846521,0.19077297,65810.0,65808.0,0.1084]
[1718873846722,0.0587,65809.0,65808.0,0.1084]
[1718873846922,0.1587,65809.0,65808.0,0.1084]
[1718873847140,0.1627,65809.0,65808.0,0.1084]
[1718873847339,0.1607,65809.0,65808.0,0.1084]
[1718873847803,0.1607,65809.0,65801.0,0.1892]
[1718873848005,0.0587,65803.0,65802.0,0.15256112]
[1718873848419,0.0587,65806.0,65802.0,0.15256112]
[1718873849243,0.0587,65806.0,65802.0,0.18883183]
[1718873849464,0.1,65808.0,65802.0,0.15256112]
[1718873849465,0.0587,65803.0,65802.0,0.15256112]
[1718873850348,0.0587,65803.0,65802.0,0.15356112]
[1718873850750,0.0587,65803.0,65802.0,0.15256112]
[1718873850929,0.0587,65803.0,65802.0,0.15856112]
[1718873851113,0.13466,65803.0,65802.0,0.19843183]
[1718873851326,0.23466,65803.0,65802.0,0.16356112]
[1718873852936,0.17596,65803.0,65802.0,0.16356112]
[1718873853142,0.13466,65803.0,65802.0,0.16356112]
[1718873853438,0.23466,65803.0,65802.0,0.16356112]
[1718873854075,0.23466,65803.0,65802.0,0.17358995]
[1718873859877,0.23466,65803.0,65802.0,0.17901795]
[1718873862545,0.17596,65803.0,65802.0,0.21793435]
[1718873862750,0.07596,65803.0,65802.0,0.32643435]
[1718873862970,0.17596,65803.0,65802.0,0.32643435]
[1718873863843,0.17588305,65803.0,65802.0,0.32643435]
[1718873864043,0.07588305,65803.0,65802.0,0.32643435]
[1718873864784,0.1,65806.0,65802.0,0.34643435]
[1718873864984,0.12520546,65809.0,65803.0,0.04333344]
[1718873865163,0.023,65808.0,65805.0,0.1847]
[1718873865397,0.023,65808.0,65805.0,0.0819]
[1718873865598,0.023,65808.0,65806.0,0.13522548]
[1718873865797,0.09896,65808.0,65806.0,0.14525454]
[1718873866132,0.19896,65808.0,65806.0,0.14525454]
[1718873866971,0.19996,65808.0,65806.0,0.14525454]
[1718873867736,0.25966,65808.0,65806.0,0.14525454]
[1718873867969,0.25866,65808.0,65806.0,0.14525454]
[1718873868375,0.25966,65808.0,65806.0,0.14525454]
[1718873869983,0.20096,65808.0,65806.0,0.14525454]
[1718873870294,0.0587,65807.0,65806.0,0.14525454]
[1718873870493,0.1,65807.0,65806.0,0.14525454]
[1718873870879,0.1587,65807.0,65806.0,0.14525454]
[1718873874283,0.2494693,65807.0,65806.0,0.14525454]
[1718873878605,0.1587,65807.0,65806.0,0.14525454]
[1718873881356,0.27216163,65807.0,65806.0,0.14525454]
[1718873881558,0.27216163,65807.0,65806.0,0.11282906]
[1718873881774,0.21346163,65807.0,65806.0,0.11282906]
[1718873881977,0.27216163,65807.0,65806.0,0.11282906]
[1718873882121,0.1587,65807.0,65806.0,0.11282906]
[1718873882324,0.27216163,65807.0,65806.0,0.11282906]
[1718873882530,0.21346163,65807.0,65806.0,0.11282906]
[1718873883346,0.21346163,65807.0,65806.0,0.15019548]
[1718873884491,0.1,65807.0,65806.0,0.15019548]
[1718873884693,0.17596,65808.0,65806.0,0.15019548]
[1718873886481,0.17796,65808.0,65806.0,0.15019548]
[1718873887365,0.17796,65808.0,65806.0,0.14919548]
[1718873887564,0.17796,65808.0,65807.0,0.04100306]
[1718873887850,0.17796,65808.0,65807.0,0.05102901]
[1718873888218,0.17796,65808.0,65807.0,0.22359013]
[1718873888417,0.07796,65808.0,65807.0,0.32558707]
[1718873888805,0.07696,65808.0,65807.0,0.26688707]
[1718873889259,0.07796,65808.0,65807.0,0.26688707]
[1718873889476,0.07596,65808.0,65807.0,0.26688707]
[1718873889842,0.07696,65808.0,65807.0,0.27388707]
[1718873890051,0.07696,65808.0,65807.0,0.35337398]
[1718873890244,0.07596,65808.0,65807.0,0.35337398]
[1718873890635,0.07596,65808.0,65807.0,0.46067398]
[1718873892437,0.07596,65808.0,65807.0,0.38118707]
[1718873893138,0.07596,65808.0,65807.0,0.36118707]
[1718873897786,0.1669221,65808.0,65807.0,0.36118707]
[1718873898411,0.07596,65808.0,65807.0,0.36118707]
[1718873900397,0.13466,65808.0,65807.0,0.02302595]
[1718873900600,0.15766,65808.0,65807.0,0.02302595]
[1718873900803,0.27136263,65808.0,65807.0,0.02302595]
[1718873901202,0.07596,65808.0,65807.0,0.02302595]
[1718873905959,0.09896,65808.0,65807.0,0.02302595]